Cogmind - Beta 15 @@@ ROGUE MODE // 2025.05.07 @ 20:45:19 Player: celerysam Result: Destroyed by 3H-SX9(R) with Subdweller Beam Cannon Performance ------------- Evolutions (0) 0 Regions Visited (2) 400 Robots Destroyed (8) 40 Value Destroyed (316) 316 Prototype IDs (0) 0 Alien Tech Used (0) 0 Bonus (0) 0 TOTAL SCORE: 756 Bonus ------- None Cogmind --------- Core Integrity 0/250 Matter 292/300 Energy 91/100 System Corruption 0% Temperature Cool (9) Movement Treading (160) Location -10/Subcaves Parts ------- > --- POWER (1) -------- (None) > --- PROPULSION (2) --- Light Treads Light Treads > --- UTILITY (2) ------ Large Storage Unit Makeshift Light Armor Plating > --- WEAPON (2) ------- Subdweller Beam Cannon Subdweller Machine Gun > --- INVENTORY (15) --- Ion Engine Subdweller Power Source Aluminum Leg Aluminum Leg Subdweller Monowheel Small Storage Unit Terrain Scanner Small Laser Light Assault Rifle Datajack Peak State ------------ > --- POWER ------------ (None) > --- PROPULSION ------- Light Treads Light Treads > --- UTILITY ---------- Large Storage Unit Makeshift Light Armor Plating > --- WEAPON ----------- Subdweller Beam Cannon Subdweller Machine Gun > --- INVENTORY -------- Ion Engine Subdweller Power Source Aluminum Leg Aluminum Leg Subdweller Monowheel Small Storage Unit Terrain Scanner Small Laser Light Assault Rifle Datajack [Rating: 12] Favorites ----------- Power Light Ion Engine Engine Light Ion Engine Propulsion Compact Wheel Treads Light Treads Leg Aluminum Leg Wheel Compact Wheel Utility Large Storage Unit Device Heat Sink Storage Large Storage Unit Protection Makeshift Light Armor Plating Weapon Assault Rifle Energy Gun Medium Laser Energy Cannon Subdweller Beam Cannon Ballistic Gun Assault Rifle Ballistic Cannon Light Cannon Build | -11 -10 -10 ------- Run | Yrd Mat Sub Slots Evolved . | . . . Power . | . . . Propulsion . | . . . Utility . | . . . Weapon . | . . . Parts Attached 20 | 4 8 8 Power 3 | 1 1 1 Engine 3 | 1 1 1 Core . | . . . Reactor . | . . . Propulsion 8 | 2 2 4 Treads 2 | . . 2 Leg 2 | 2 . . Wheel 4 | . 2 2 Hover . | . . . Flight . | . . . Utility 4 | 1 2 1 Device 1 | . 1 . Storage 2 | 1 1 . Processor . | . . . Hackware . | . . . Protection 1 | . . 1 Artifact . | . . . Weapon 5 | . 3 2 Energy Gun 1 | . 1 . Energy Cannon 1 | . . 1 Ballistic Gun 2 | . 1 1 Ballistic Cannon 1 | . 1 . Launcher . | . . . Special Weapon . | . . . Impact Weapon . | . . . Slashing Weapon . | . . . Piercing Weapon . | . . . Special Melee Weapon . | . . . Unidentified Prototypes . | . . . Parts Lost 11 | . 2 9 Power 3 | . 1 2 Propulsion 4 | . . 4 Utility 1 | . . 1 Weapon 3 | . 1 2 Highest Loss Streak 8 | . 1 8 To Critical Strikes . | . . . Average Backups 9 | 6 8 11 Power 1 | . 1 1 Propulsion 3 | 3 4 3 Utility 1 | . 1 2 Weapon 2 | 2 1 2 Tool/Special . | . . . Unused Backups 6 | . . 6 Power 2 | . . 2 Propulsion 1 | . . 1 Utility 1 | . . 1 Weapon 1 | . . 1 Tool/Special 1 | . . 1 Average Slot Usage (%) 88 | . 92 84 Engine 12 | . 13 11 Treads 3 | . . 8 Leg 8 | . 15 . Wheel 14 | . 12 17 Device 8 | . 7 9 Storage 14 | . 14 14 Energy Gun 6 | . 12 . Energy Cannon 2 | . . 5 Ballistic Gun 12 | . 14 9 Ballistic Cannon 4 | . 1 7 Peak Build Rating 12 | 4 8 12 Average Rating 6 | 3 6 8 On Entrance 4 | . 4 8 Naked Turns . | . . . Heaviest Build 37 | 8 31 37 Greatest Support 40 | 20 32 40 Greatest Overweight (x) 9 | . . 9 Average Overweight (x) . | . . . Largest Inventory Capacity 15 | 8 15 15 Average Capacity 12 | 7 11 15 Most Carried 15 | 8 10 15 Average Carried 9 | 6 8 11 Final Capacity 15 | 8 15 15 Final Carried 10 | 8 10 10 Class Distribution -------------------- 100% | Mutant Dominant Class ---------------- Mutant | -10/Materials Mutant | -10/Subcaves Resources | -11 -10 -10 ----------- Run | Yrd Mat Sub Matter Collected 476 | 240 142 94 Remotely . | . . . Salvage Created 340 | . 186 154 Parts 19 | . 10 9 Haulers Intercepted . | . . . Recyclers Shooed 1 | . 1 . Parts Field Recycled . | . . . Retrieved Matter . | . . . Parts Self-Destructed 6 | . . 6 Prevented . | . . . Kills | -11 -10 -10 ------- Run | Yrd Mat Sub Combat Hostiles Destroyed 8 | . 5 3 Guns 5 | . 4 1 Cannons 3 | . 1 2 Classes Destroyed 2 | . 1 1 Grunt 5 | . 5 . Subdweller 3 | . . 3 Best Kill Streak 2 | . 2 2 Combat Bots Only 2 | . 2 2 Max Kills in Single Turn 1 | . 1 1 Gunslinging . | . . . Exploded . | . . . Melee . | . . . Uniques/NPCs Destroyed . | . . . Combat | -11 -10 -10 -------- Run | Yrd Mat Sub Hostile Shots Fired 66 | . 41 25 Missed 12 | . 7 5 Hits 54 | . 34 20 Projectile 54 | . 34 20 Critical Strikes 2 | . 1 1 Damage Taken 1168 | . 438 730 Core 261 | . 100 161 Absorbed by Shields . | . . . Core Remaining (%) 100 | 100 . . Volleys Fired 38 | . 26 12 Largest 2 | . 2 2 Hottest 110 | . 70 110 Shots Fired 69 | . 52 17 Gun 53 | . 48 5 Cannon 16 | . 4 12 Launcher . | . . . Special . | . . . Kinetic 36 | . 30 6 Thermal 33 | . 22 11 Explosive . | . . . Electromagnetic . | . . . Robot Hit Streak 8 | . 8 7 Robot Miss Streak 4 | . 4 1 Penetration Max . | . . . Secondary Targets 1 | . 1 . Max Gunslinging Chain 1 | . 1 . Shots Hit Robots 47 | . 33 14 Core Hits 15 | . 11 4 Critical Kills . | . . . Critical Parts Destroyed . | . . . Critical Strikes 1 | . 1 . Blast 1 | . 1 . Melee Attacks . | . . . Impact . | . . . Slashing . | . . . Piercing . | . . . Sneak Attacks . | . . . Combat Hostiles . | . . . Follow-up Attacks . | . . . Damage Inflicted 760 | . 464 296 Guns 471 | . 391 80 Cannons 289 | . 73 216 Explosions . | . . . Melee . | . . . Ramming . | . . . Kinetic 305 | . 225 80 Thermal 455 | . 239 216 Explosive . | . . . Electromagnetic . | . . . Impact . | . . . Slashing . | . . . Piercing . | . . . Highest Corruption . | . . . Average Corruption . | . . . Corruption Purged . | . . . Corruption Blocked . | . . . Overload Shots . | . . . Overflow Damage . | . . . Projectiles . | . . . Explosions . | . . . Melee . | . . . Knockbacks . | . . . Impact . | . . . Kinetic . | . . . Secondary . | . . . Self-Inflicted Damage . | . . . Shots . | . . . Rammed . | . . . Targets Rammed . | . . . Kicked . | . . . Crushed . | . . . Highest Temperature 229 | . 229 9 Average Temperature 92 | . 112 4 Received Heat Transfer 396 | . 267 129 Effects 1 | . 1 . Energy Bleed 1 | . 1 . Siege Activations . | . . . Martial Activations . | . . . Shielding Activations . | . . . Robots Disrupted . | . . . Combat Hostiles . | . . . Robots Corrupted . | . . . Combat Hostiles . | . . . Parts Fried . | . . . Impact Corruptions . | . . . Robots Melted . | . . . Combat Hostiles . | . . . Parts Melted 3 | . 1 2 Heat Transferred 999 | . 703 296 Parts Sabotaged . | . . . Parts Stolen . | . . . Parts Stripped . | . . . Power Chain Reactions . | . . . Alert | -11 -10 -10 ------- Run | Yrd Mat Sub Maximum Alert Level . | . . . Low Security (%) 100 | 100 100 . Level 1 . | . . . Level 2 . | . . . Level 3 . | . . . Level 4 . | . . . Level 5 . | . . . High Security . | . . . Max Security . | . . . Peak Influence 50 | . 50 . Initial . | . . . Average 9 | . 12 . Influence Increases 131 | . 131 . Destroy 0b10 Robot/C 100 | . 100 . Destroy Leader 30 | . 30 . Destroy Structure 1 | . 1 . Influence Decreases 131 | . 117 14 Entered New Map 7 | . . 7 Time Decay 124 | . 117 7 Squads Dispatched 2 | . 2 . Investigation 1 | . 1 . Extermination . | . . . Reinforcement 1 | . 1 . Assault . | . . . Garrison . | . . . Intercept . | . . . Searches Triggered . | . . . Construction Impeded . | . . . Haulers Reinforced . | . . . Active Scanning Responses . | . . . Cargo Convoy Interrupts . | . . . Stealth | -11 -10 -10 --------- Run | Yrd Mat Sub Distress Signals 1 | . 1 . Communications Jammed . | . . . Distress Signals . | . . . Times Spotted 16 | . 11 5 Peak Tracking Total 3 | . 3 2 Tactical Retreats . | . . . Traps | -11 -10 -10 ------- Run | Yrd Mat Sub Traps Triggered 5 | . . 5 Indirectly . | . . . Trap Hack Attempts . | . . . Triggered . | . . . Disarmed . | . . . Reprogrammed . | . . . Reused . | . . . Traps Extracted . | . . . Installed . | . . . Triggered . | . . . Machines | -11 -10 -10 ---------- Run | Yrd Mat Sub Machines Disabled . | . . . Max in Single Turn . | . . . Machines Repaired . | . . . Machines Dismantled . | . . . Machines Sabotaged . | . . . Overloaded Fab Kills . | . . . Hacking | -11 -10 -10 --------- Run | Yrd Mat Sub Machines Accessed 2 | . 2 . Terminals 1 | . 1 . Fabricators . | . . . Repair Stations . | . . . Recycling Units 1 | . 1 . Scanalyzers . | . . . Garrison Access . | . . . Total Hacks 4 | . 4 . Successful 3 | . 3 . Failed 1 | . 1 . Catastrophic . | . . . Database Lockouts . | . . . Manual . | . . . Terminals 3 | . 3 . Fabricators . | . . . Repair Stations . | . . . Recycling Units 1 | . 1 . Scanalyzers . | . . . Garrison Access . | . . . Terminal Hacks 2 | . 2 . Record 1 | . 1 . Robot Analysis 1 | . 1 . Fabricator Hacks . | . . . Repair Station Hacks . | . . . Recycling Unit Hacks 1 | . 1 . Report Inventory 1 | . 1 . Scanalyzer . | . . . Garrison Access Hacks . | . . . Unauthorized Hacks . | . . . Terminals . | . . . Fabricators . | . . . Repair Stations . | . . . Recycling Units . | . . . Scanalyzers . | . . . Garrison Access . | . . . Data Cores Recovered . | . . . Used . | . . . Hacking Detections 1 | . 1 . Full Trace Events 1 | . 1 . Feedback Events . | . . . Feedback Blocked . | . . . Robot Schematics Acquired . | . . . Robots Built . | . . . Authchips . | . . . Time . | . . . Total Robot Build Rating . | . . . Part Schematics Acquired . | . . . Parts Built . | . . . Authchips . | . . . Time . | . . . Total Part Build Rating . | . . . Parts Repaired . | . . . Time . | . . . Parts Recycled . | . . . Recycled Matter . | . . . Retrieved Matter . | . . . Retrieved Components . | . . . Parts Scanalyzed . | . . . Part Schematics Acquired . | . . . Parts Damaged . | . . . Bothacking | -11 -10 -10 ------------ Run | Yrd Mat Sub Used RIF Installer . | . . . Robots Hacked . | . . . Non-combat . | . . . Combat . | . . . Robot Hacks Applied . | . . . Relay Couplers Released . | . . . Fabnet Peak Effective % . | . . . Robots Rewired . | . . . Allies Hacked . | . . . Hacks Repelled . | . . . Allies | -11 -10 -10 -------- Run | Yrd Mat Sub Total Allies . | . . . Largest Group . | . . . Highest-Rated Group . | . . . Highest-Rated Ally . | . . . Total Orders . | . . . Ally Attacks . | . . . Total Damage . | . . . Kills . | . . . Allies Corrupted . | . . . Allies Melted . | . . . Intel | -11 -10 -10 ------- Run | Yrd Mat Sub Active Infowar (turns) . | . . . Robot Analysis Total 1 | . 1 . Derelict Logs Recovered 1 | . . 1 Drone Launches . | . . . Drone Recoveries . | . . . Exploration | -11 -10 -10 ------------- Run | Yrd Mat Sub Turns Passed 896 | 131 427 338 Spaces Moved 575 | 61 279 235 Core 16 | 15 . 1 Treads 53 | . . 53 Legs 177 | 46 131 . Wheels 329 | . 148 181 Hover . | . . . Flight . | . . . Fastest Speed 50 | 50 100 95 Average Speed 111 | 102 109 115 Slowest Speed 500 | 120 120 500 Overloaded Moves . | . . . Propulsion Burnouts . | . . . Robots Hopped . | . . . Potential Cave-ins . | . . . Cave-ins Triggered . | . . . Exploration Rate (%) 24 | 4 48 21 Regions Visited 2 Branch Regions 1 Pre-discovered Areas . | . . . Known Exits Taken . | . . . Unknown Exits Taken 2 | 1 1 . Scrap Searched 2 | . . 2 Spaces Dug . | . . . Terrain Destroyed 1 | . . 1 Melee . | . . . Projectile 1 | . . 1 AOE . | . . . Terrain Rammed . | . . . Walls Destroyed . | . . . Machines Disabled . | . . . Actions | -11 -10 -10 --------- Run | Yrd Mat Sub Total 754 | 127 348 279 Wait 95 | 55 26 14 Move 573 | 60 278 235 Hop . | . . . Pick Up 24 | 8 8 8 Fast Attach 4 | 4 . . Attach 14 | . 5 9 Detach 1 | . . 1 Swap 3 | . 3 . Drop 2 | . 2 . Fire 38 | . 26 12 Melee . | . . . Ram . | . . . Kick . | . . . Crush . | . . . Escape Stasis . | . . . Rewire . | . . . Trap . | . . . Miscellaneous . | . . . Route ------- -11/Scrapyard -10/Materials (discovered 2 exits: [*Mat] / [*Sub]) -10/Subcaves (discovered 1 exit: [Scr]) History --------- Turn | Location | Event 6 | -11/Scrapyard | Discovered new exit (range 15) 132 | -11/Scrapyard | Entered Materials 133 | -10/Materials | Met a group of wandering Federalists 154 | -10/Materials | Discovered new exit (range 11) 306 | -10/Materials | Build established: Mutant 381 | -10/Materials | Discovered new exit (range 8) 559 | -10/Materials | Entered Subcaves 560 | -10/Subcaves | Continued accompanying wandering Federalists (6) 560 | -10/Subcaves | Approached by a straggling Scientist 560 | -10/Subcaves | Learned Materials security intel 668 | -10/Subcaves | Disturbed a concealed Subdweller 736 | -10/Subcaves | Core integrity fell below 50% 808 | -10/Subcaves | Lost 8 parts (1p4n1u2w) 884 | -10/Subcaves | Core integrity fell below 20% 897 | -10/Subcaves | Destroyed by 3H-SX9(R) with Subdweller Beam Cannon Last Messages --------------- 00738_ Lgt. Cannon destroyed. 00744_ Acquired Wheel. 00766_ Ion Engine destroyed. 00775_ Sub. Monowheel destroyed. 00777_ Heat Sink destroyed. 00777_ Wheel destroyed. 00778_ Disposable Heat Sink melted. 00778_ HH-FQG(R) destroyed. 00784_ AR-LNV(R) affixes Scrap Shield Fragment to Scrap Shield. 00786_ Disposable Heat Sink melted. 00786_ AR-LNV(R) destroyed. 00788_ Acquired 20 matter. 00794_ Acquired 10 matter. 00797_ Acquired Sub. Power Source. 00801_ Acquired Sub. Monowheel. 00830_ Acquired 10 matter. 00889_ Sub. Power Source destroyed. 00893_ Acquired 3 matter. 00895_ Acquired 2 matter. Map ----- +----------------------------------------------------+ | ?????????????????????????????????????????????????? | | ?????????????????????????????????????????????????? | | ?????????????????????????????????????????????????? | | ?????????????????????????????????????????????????? | | ?????????????????????????????????????????????????? | | ?????????????????????????????????????????????????? | | ?????????????????????????????????????????????????? | | ?????????????????????????????????????????????????? | | ?????????????????????????????????????????????????? | | ?????????????????????????????????????????????????? | | ?????????????????????????????????????????????????? | | ?????????????????????????????????????????????????? | | ?????????????????????????????????????????????????? | | ?????????????????????????????????????????????????? | | ?????????????????????????????????????????????????? | | ?????????????????????????????????????????????????? | | ?????????????????????????????????????????????????? | | ?????????????????????????????????????????????????? | | ??????????????## ????????????????????????????????? | | ??????????????# ???????????????????????????????? | | ??????????????# ??????????????????????????????? | | ??????????????# ??##????????????????????????? | | ???????????????# ?#;####????###??#####???###? | | ???????????????# O#; " ##???#%#### ##### ## | | ???????????????# " ###?## # | | ???????????????# [ @ "#"#??# # | | ?????????????# " " R #???# # ## # | | ????????????# """ R ##??# ##### | | ????????????##### " ##" " #### # #### | | ????????????????## ""##?# " #### | | ?????????????????## "" ???# "" " #### ## | | ??????????????????#?" ????# "" ## #?###### | | ???????????????????? ????# "" ## ###?????# | | ???????????????????# ?????#"""""" ### #???????# | | ??????????????????????????#"""""" #?# #???????# | | ??????????????????????????##"""####?#####???????## | | ???????????????????????????#####?????????????????? | | ?????????????????????????????????????????????????? | | ?????????????????????????????????????????????????? | | ?????????????????????????????????????????????????? | | ?????????????????????????????????????????????????? | | ?????????????????????????????????????????????????? | | ?????????????????????????????????????????????????? | | ?????????????????????????????????????????????????? | | ?????????????????????????????????????????????????? | | ?????????????????????????????????????????????????? | | ?????????????????????????????????????????????????? | | ?????????????????????????????????????????????????? | | ?????????????????????????????????????????????????? | | ?????????????????????????????????????????????????? | +----------------------------------------------------+ Best States ------------- Heat Dissipation 35 Energy Generation 15 Energy Capacity 250 Matter Stores 300 Matter Capacity 300 Sight Range 16 Terrain Scan Density 10 Evasion (%) 55 Recoil Reduction 2 Item Schematics ----------------- None Robot Schematics ------------------ None Fabricated ------------ Nothing Repaired ---------- Nothing Alien Tech Used ----------------- None Achievements -------------- None Challenges ------------ None Game ------ Seed MultinovaPoweredManipulator Manual? 0 Play Time 00:10:05 Cumulative 238.0 hours Start 2025.05.07 @ 20:37:42 End 2025.05.07 @ 20:45:19 Sessions 1 Manual Loads 0 Difficulty Rogue Special Mode None Game No. 356 Rogue 356 Adventurer 0 Explorer 0 Win Type - Total 1 Types 1/0/0/0/0/0/0/0/0/0 Lore% 46 Gallery% 59 Achievement% 43 Wizard Run 0 Options --------- Layout 1 ASCII 0 Keyboard 0 Movement Mouse Keybinds 0 Fullscreen 2 Font 24/Smallcaps Map View 50x35 Zoom Use 0% Tactical HUD 1 Map Filters NONE Filters NONE Steam 1 RUN: 0171f7af-bb64-493c-981b-2746d691630a